bitfinex/quotes_ETHUSD_20250802
["timestamp","ask_amount","ask_price","bid_price","bid_amount"]
[1754174284271,0.1464,3409.3,3408.9,3.4741]
[1754174284466,0.1464,3409.3,3408.9,5.12223893]
[1754174284671,0.634,3409.3,3408.9,3.4741]
[1754174284835,0.1464,3409.3,3408.9,3.0]
[1754174285036,0.634,3409.3,3408.9,3.0]
[1754174285267,0.1464,3409.3,3408.9,3.0]
[1754174285566,0.4876,3409.2,3408.9,3.0]
[1754174286934,0.1464,3409.3,3408.9,3.0]
[1754174287165,0.1464,3409.3,3408.9,4.95658084]
[1754174287676,0.1464,3409.3,3409.2,9.61780844]
[1754174288853,0.634,3409.3,3409.2,9.61780844]
[1754174297155,0.1464,3409.3,3409.2,9.61780844]
[1754174297558,0.634,3409.3,3409.2,9.61780844]
[1754174300484,1.0721,3409.3,3408.6,0.002]
[1754174300781,0.1464,3408.9,3408.6,0.002]
[1754174301149,0.4876,3408.8,3408.6,0.002]
[1754174301552,0.5845,3408.9,3408.6,0.002]
[1754174301874,0.4876,3408.7,3408.6,0.002]
[1754174304897,1.0675,3408.7,3408.6,0.002]
[1754174305376,1.0675,3408.7,3408.3,0.002]
[1754174305576,5.52727194,3408.6,3408.2,0.002]
[1754174305901,0.60404021,3408.5,3408.2,0.002]
[1754174306070,0.1464,3408.3,3408.2,0.002]
[1754174306460,1.08867517,3408.3,3408.2,0.002]
[1754174306654,11.08867517,3408.3,3408.2,0.002]
[1754174306855,11.052,3408.3,3408.2,0.002]
[1754174307060,12.67243672,3408.3,3408.2,0.002]
[1754174307274,17.25743672,3408.3,3408.2,0.002]
[1754174311774,7.25743672,3408.3,3408.2,0.002]
[1754174312006,5.637,3408.3,3408.2,0.002]
[1754174312778,5.2035,3408.3,3408.2,0.002]
[1754174313016,4.7314,3408.3,3408.2,0.002]
[1754174313588,0.1464,3408.3,3408.2,0.002]
[1754174313794,4.7314,3408.3,3408.2,0.9409]
[1754174314300,4.7314,3408.3,3408.2,0.002]
[1754174316117,4.7314,3408.3,3408.2,0.4671]
[1754174316423,4.7314,3408.3,3408.2,0.9409]
[1754174318219,4.7314,3408.3,3408.2,0.4671]
[1754174318609,4.7314,3408.3,3408.2,0.9409]
[1754174322308,4.7314,3408.3,3408.2,0.002]
[1754174323524,4.7314,3408.3,3408.2,0.4671]
[1754174323819,4.7314,3408.3,3408.2,0.002]
[1754174324532,5.2035,3408.3,3408.2,0.002]
[1754174325102,4.7314,3408.3,3408.2,0.002]
[1754174326429,5.2035,3408.3,3408.2,0.002]
[1754174327096,4.7314,3408.3,3408.2,0.002]
[1754174328430,4.585,3408.3,3408.2,10.97507536]
[1754174329430,0.1464,3408.7,3408.3,3.0]
[1754174329593,4.581,3409.1,3408.7,3.0]
[1754174329790,4.581,3409.1,3409.0,9.61780844]
[1754174330026,4.581,3409.1,3409.0,10.55670844]
[1754174330234,4.581,3409.4,3409.1,3.0]
[1754174330421,4.581,3409.4,3408.8,0.9389]
[1754174330592,0.4731,3409.3,3408.8,0.4738]
[1754174330797,0.4721,3409.2,3408.7,3.4651]
[1754174330997,0.4721,3409.1,3408.7,3.4651]
[1754174331198,4.58,3409.0,3408.7,3.4651]
[1754174332820,0.4721,3409.1,3408.7,3.4651]
[1754174336238,0.4731,3409.1,3408.7,3.0]
[1754174336528,0.001,3409.1,3408.7,3.0]
[1754174336731,0.495,3409.0,3408.7,4.00916084]
[1754174337202,0.495,3409.0,3408.7,4.45926084]
[1754174337397,0.001,3409.1,3408.7,4.45926084]
[1754174337736,0.496,3409.1,3408.7,4.45926084]
[1754174338834,0.496,3409.1,3408.7,4.95826084]
[1754174339333,0.496,3409.1,3408.7,4.50816084]
[1754174339534,0.1464,3408.9,3408.8,0.4501]
[1754174340221,0.1464,3408.9,3408.8,0.9491]
[1754174341435,0.1464,3408.9,3408.8,2.12134693]
[1754174341644,0.1464,3409.0,3408.8,2.12134693]
[1754174341830,0.1464,3409.0,3408.9,9.61780844]
[1754174342001,0.1464,3409.0,3408.9,10.56690844]
[1754174344052,0.1464,3409.0,3408.9,11.44862144]
[1754174344250,0.1464,3409.0,3408.9,4.331813]
[1754174344437,0.1464,3409.0,3408.9,3.881713]
[1754174346953,0.1464,3409.0,3408.9,4.331813]
[1754174347115,0.001,3409.1,3409.0,3.0]
[1754174347315,0.1474,3409.1,3409.0,3.9491]
[1754174347926,0.1474,3409.1,3409.0,3.4501]
[1754174349752,0.1474,3409.1,3409.0,4.331793]
[1754174352233,0.1474,3409.1,3409.0,3.881693]
[1754174353440,0.1474,3409.1,3409.0,4.331793]
[1754174354666,0.1474,3409.1,3409.0,3.881693]
[1754174360182,0.1474,3409.1,3409.0,4.331793]
[1754174360482,0.1474,3409.1,3409.0,3.881693]
[1754174362564,0.1474,3409.1,3409.0,4.331593]
[1754174362762,0.1474,3409.1,3409.0,3.881693]
[1754174363274,0.6371,3409.1,3409.0,3.881693]
[1754174364086,0.1474,3409.1,3409.0,3.881693]
[1754174372204,0.6371,3409.1,3409.0,3.881693]
[1754174372881,0.001,3409.1,3409.0,5.93303314]
[1754174373995,0.001,3409.1,3409.0,6.07943314]
[1754174374374,0.001,3409.1,3409.0,6.22414581]
[1754174379106,0.001,3409.1,3409.0,6.77414581]
[1754174379977,0.001,3409.3,3409.0,6.77414581]
[1754174380178,0.001,3409.3,3409.2,3.55]
[1754174380378,0.001,3409.3,3409.2,3.6964]
[1754174380601,0.001,3409.3,3409.2,4.61728189]
[1754174382107,0.001,3409.3,3409.2,4.73480789]
[1754174385581,0.001,3409.7,3409.5,0.55]
[1754174385811,0.001,3409.7,3409.6,15.19927252]
[1754174386017,0.001,3409.7,3409.6,15.18489837]
[1754174386219,0.001,3409.7,3409.6,16.38419837]
[1754174388900,0.488211,3410.4,3409.7,3.55]
[1754174389101,0.488211,3410.4,3410.3,9.61780844]
[1754174389304,0.488211,3410.4,3410.3,3.0]
[1754174389692,0.488211,3410.4,3410.3,3.881317]
[1754174391439,0.961211,3410.4,3410.3,3.881317]
[1754174392858,0.1464,3410.6,3410.3,4.7401887]
[1754174393055,0.4619,3410.9,3410.4,3.56435609]
[1754174393359,0.5933,3411.1,3410.8,3.0]
[1754174393360,0.1464,3411.1,3410.8,3.0]
[1754174393493,4.56,3411.4,3410.8,4.4467666]
[1754174393811,4.56,3411.4,3411.3,3.0]
[1754174394302,5.0219,3411.4,3411.3,3.0]
[1754174395294,7.049,3412.9,3411.4,0.55]
[1754174395537,0.4619,3411.9,3411.7,3.0]
[1754174395743,0.4619,3411.8,3411.7,3.0]
[1754174396095,0.4619,3411.8,3411.7,3.4619]
[1754174397373,0.4619,3411.8,3411.7,0.4619]
[1754174397374,0.9088,3411.8,3411.7,0.4619]
[1754174399253,0.4619,3411.8,3411.7,0.4619]
[1754174399466,1.0552,3412.1,3411.7,0.4619]
[1754174399684,0.5933,3412.1,3411.7,0.4619]
[1754174399840,0.4619,3412.0,3411.7,0.4619]
[1754174400255,0.4619,3411.9,3411.7,0.4619]
[1754174400454,0.4469,3412.1,3411.7,0.4619]
[1754174400655,0.4619,3411.8,3411.7,0.4619]
[1754174401747,0.4629,3411.8,3411.7,0.4619]
[1754174402490,0.001,3411.8,3411.7,2.0222237]
[1754174402639,0.001,3411.8,3411.7,5.9754237]
[1754174402834,0.001,3411.8,3411.7,6.5254237]
[1754174403779,0.001,3411.8,3411.7,5.5722237]
[1754174403975,0.4629,3411.8,3411.7,5.0222237]
[1754174404182,0.9098,3411.8,3411.7,5.0222237]
[1754174404404,0.4629,3411.8,3411.7,3.4619]
[1754174405006,0.9098,3411.8,3411.7,3.4619]
[1754174406290,0.4629,3411.8,3411.7,3.4619]
[1754174406495,0.001,3411.8,3411.7,3.4619]
[1754174407594,0.001,3411.8,3411.7,5.02069084]
[1754174407786,0.4629,3411.8,3411.7,5.02069084]
[1754174407984,0.001,3411.8,3411.7,5.03501899]
[1754174408184,0.001,3411.8,3411.7,5.49201899]
[1754174408493,0.001,3411.8,3411.7,5.02069084]
[1754174408696,0.001,3411.8,3411.7,5.03501899]
[1754174409408,0.4629,3411.8,3411.7,3.4619]
[1754174409614,0.9098,3411.8,3411.7,3.4619]
[1754174410315,0.4629,3411.8,3411.7,3.4619]
[1754174410498,1.0562,3411.8,3411.7,3.4619]
[1754174411407,0.6093,3411.8,3411.7,3.4619]
[1754174411617,0.6093,3411.8,3411.7,3.80809]
[1754174411820,0.001,3411.8,3411.7,3.80809]
[1754174412051,0.001,3411.8,3411.7,3.82241815]
[1754174412348,0.9098,3411.8,3411.7,3.4619]
[1754174412553,1.0562,3411.8,3411.7,3.4619]
[1754174413846,0.6093,3411.8,3411.7,3.4619]
[1754174414047,0.1474,3411.8,3411.7,3.4619]
[1754174414506,0.6093,3411.8,3411.7,3.4619]
[1754174416005,0.1474,3411.8,3411.7,3.4619]
[1754174417620,0.001,3411.8,3411.7,3.4619]
[1754174419158,0.001,3411.8,3411.7,3.9189]
[1754174419311,0.001,3411.8,3411.7,5.5344637]
[1754174419739,0.001,3411.8,3411.7,5.0382637]
[1754174419940,0.001,3411.8,3411.7,4.5812637]
[1754174420751,0.001,3411.8,3411.7,6.0844637]
[1754174422979,0.001,3411.8,3411.7,5.5882637]
[1754174423477,0.001,3411.8,3411.7,6.0639637]
[1754174424448,4.559,3412.2,3411.7,6.0639637]
[1754174424449,0.001,3412.2,3411.8,3.55]
[1754174424762,0.001,3412.2,3412.1,10.31420844]
[1754174424956,0.001,3412.2,3412.1,14.86420844]
[1754174425166,0.001,3412.2,3412.1,15.81290844]
[1754174427047,0.001,3412.2,3412.1,16.02995986]
[1754174427385,0.001,3412.2,3412.1,17.16772874]
[1754174428883,0.001,3412.2,3412.1,4.5012203]
[1754174429048,0.4527,3412.2,3412.1,4.5012203]
[1754174429249,0.4527,3412.2,3412.1,3.91345142]
[1754174429782,0.4527,3412.2,3412.1,5.31505142]
[1754174431372,0.001,3412.2,3412.1,5.31505142]
[1754174432172,0.001,3412.2,3412.1,5.31405142]
[1754174432846,0.001,3412.2,3412.1,9.85453741]
[1754174433047,0.001,3412.2,3412.1,10.32753741]
[1754174433281,0.001,3412.2,3412.1,10.80323741]
[1754174433945,0.001,3412.2,3412.1,11.25493741]
[1754174434282,0.001,3412.6,3412.1,11.25493741]
[1754174434283,0.001,3412.6,3412.3,0.55]
[1754174434450,0.001,3412.6,3412.5,9.61780844]
[1754174434784,0.8864,3413.7,3412.6,3.55]
[1754174434984,0.4517,3413.6,3413.5,3.0]
[1754174435669,0.4517,3413.6,3413.5,3.880505]
[1754174436369,0.4517,3413.8,3413.5,4.90269422]
[1754174436569,4.9817,3414.1,3413.5,4.90269422]
[1754174437082,0.4517,3414.0,3413.5,4.90269422]
[1754174437285,0.8864,3413.9,3413.5,4.90269422]
[1754174437454,0.8864,3413.8,3413.5,4.90269422]
[1754174437657,0.4517,3413.7,3413.5,4.90269422]
[1754174437890,0.4517,3413.6,3413.5,3.880505]
[1754174438210,0.8864,3413.6,3413.5,0.880505]
[1754174438602,0.8864,3413.6,3412.2,4.545]
[1754174438899,0.4517,3413.5,3412.7,6.61780844]
[1754174439109,0.4517,3413.5,3412.8,3.67608106]
[1754174439266,0.4517,3413.5,3413.1,6.61780844]
[1754174439672,0.4347,3413.9,3413.1,6.61780844]
[1754174440001,0.1464,3413.7,3413.2,0.63369163]
[1754174440204,0.1464,3413.7,3413.2,0.6336925]
[1754174440499,0.5981,3413.7,3413.2,1.0853925]
[1754174440659,0.4517,3413.6,3413.2,0.5981]
[1754174440859,0.4347,3414.0,3413.2,3.4517]
[1754174441116,0.1464,3413.5,3413.2,0.4517]
[1754174441412,0.1464,3413.3,3413.2,0.4517]
[1754174441761,1.0328,3413.3,3413.2,0.4517]
[1754174443403,0.1464,3413.3,3413.2,0.4517]
[1754174443605,0.1464,3413.4,3413.2,0.4517]
[1754174444240,0.4517,3413.6,3413.3,0.01429467]
[1754174444404,0.5981,3413.6,3413.2,0.4517]
[1754174444741,0.1464,3413.6,3413.2,0.15468]
[1754174445055,0.4517,3413.5,3413.2,0.1464]
[1754174445216,0.4347,3413.5,3413.2,0.1464]
[1754174445413,0.8864,3413.4,3413.1,0.6194]
[1754174445623,0.1464,3413.2,3413.1,0.6194]
[1754174446137,1.0328,3413.2,3413.1,0.6194]
[1754174446640,0.1464,3413.2,3413.1,0.6194]
[1754174447736,0.1474,3413.3,3413.1,0.6194]
[1754174448248,0.001,3413.3,3413.1,0.6194]
[1754174448606,0.4347,3413.8,3413.2,0.4757]
[1754174448806,0.1464,3413.6,3413.2,0.9487]
[1754174449040,0.1464,3413.7,3413.2,0.17145]
[1754174449238,0.1464,3413.7,3413.1,0.7658]
[1754174449444,0.43433514,3414.0,3413.1,0.6194]
[1754174449674,0.1464,3413.7,3413.2,0.1464]
[1754174449876,0.43399871,3414.0,3413.2,1.0951]
[1754174450075,0.43399871,3414.0,3413.1,0.6194]
[1754174450278,0.49809987,3413.9,3413.1,0.6194]
[1754174450645,0.4517,3413.8,3413.1,0.6194]
[1754174451247,0.4517,3413.8,3413.1,1.0951]
[1754174452164,4.542,3413.9,3413.2,1.4651]
[1754174452494,4.542,3413.9,3413.4,0.55]
[1754174452692,4.542,3413.9,3413.3,0.55]
[1754174452997,4.39526357,3413.9,3413.2,0.55]
[1754174454257,4.39526357,3413.9,3413.1,0.6194]
[1754174454258,0.4781,3413.8,3413.1,0.6194]
[1754174454462,0.9384,3413.8,3413.1,0.6194]
[1754174454656,0.9384,3413.7,3413.1,0.6194]
[1754174454859,0.4781,3413.6,3413.1,0.6194]
[1754174455089,0.4781,3413.5,3413.1,0.6194]
[1754174457461,0.4781,3413.5,3413.1,1.0809]
[1754174457865,4.88091993,3413.9,3413.1,0.6194]
[1754174458066,0.48819199,3413.8,3413.2,0.9151]
[1754174458303,0.96629199,3413.8,3413.2,0.9151]
[1754174458611,0.96629199,3413.8,3413.2,1.342018]
[1754174460835,0.51471716,3413.7,3413.2,0.880518]
[1754174461117,0.1464,3413.3,3412.2,0.1464]
[1754174461271,1.51117272,3413.7,3412.2,0.1464]
[1754174461272,4.57762252,3413.2,3412.7,0.880787]
[1754174461478,1.39616225,3413.1,3412.7,0.880787]
[1754174461711,0.1464,3412.8,3412.7,0.880787]
[1754174462011,1.0848,3412.8,3412.7,0.880787]
[1754174462231,1.0848,3412.8,3411.8,0.002]
[1754174462426,0.1464,3412.4,3411.9,0.1464]
[1754174462602,0.4781,3412.3,3411.9,0.1464]
[1754174462793,0.4781,3412.3,3411.9,0.6079]
[1754174462993,0.4781,3412.3,3411.9,1.0694]
[1754174463292,0.1464,3412.4,3411.9,1.2219]
[1754174463504,0.6245,3412.4,3411.9,1.2219]
[1754174464336,4.541,3412.6,3412.2,0.1464]
[1754174464742,4.541,3412.6,3412.3,0.9151]
[1754174464934,4.541,3412.6,3412.4,3.0]
[1754174465240,4.541,3412.6,3412.4,3.4615]
[1754174465445,4.541,3412.6,3412.2,0.1464]
[1754174465746,1.0848,3412.5,3412.1,0.21743276]
[1754174465948,0.1464,3412.5,3412.1,0.21743276]
[1754174466246,0.1464,3412.5,3412.0,3.1464]
[1754174466247,0.9384,3412.4,3412.0,3.1464]
[1754174466420,0.4603,3412.4,3412.0,3.1464]
[1754174466616,0.4781,3412.3,3412.0,3.1464]
[1754174467745,0.1464,3412.5,3412.0,3.1464]
[1754174467945,0.1464,3412.5,3412.0,4.67549087]
[1754174468248,0.6245,3412.5,3412.0,4.67549087]
[1754174468451,0.1464,3412.5,3412.0,3.1464]
[1754174468632,0.4781,3412.4,3412.0,3.1464]
[1754174468944,0.4781,3412.3,3412.1,0.880868]
[1754174469319,0.1464,3412.5,3412.1,0.880868]
[1754174469524,0.6245,3412.5,3412.1,0.880868]
[1754174469727,0.4781,3412.4,3412.1,0.880868]
[1754174469928,0.6245,3412.3,3412.1,0.880868]
[1754174470947,0.6245,3412.3,3411.9,3.6079]
[1754174471143,0.6245,3412.3,3412.2,0.880874]
[1754174472632,0.1464,3412.3,3412.2,0.880874]
[1754174472821,4.541,3412.6,3412.3,3.0]
[1754174473022,0.1464,3412.5,3412.3,3.9151]
[1754174473652,0.1464,3412.5,3412.3,3.0]
[1754174473952,0.1464,3412.5,3412.4,0.9151]
[1754174475975,0.1464,3412.5,3412.4,1.795926]
[1754174476173,4.539,3412.7,3412.5,3.0]
[1754174476477,4.539,3412.7,3412.6,10.51960866]
[1754174476860,0.1464,3412.9,3412.6,10.51960866]
[1754174477174,0.1464,3412.9,3412.7,0.9151]
[1754174477377,4.539,3413.0,3412.8,1.05196087]
[1754174477741,4.539,3413.0,3412.9,0.9151]
[1754174477936,0.001,3413.2,3412.9,1.795755]
[1754174478161,0.001,3413.2,3413.1,9.60450866]
[1754174478362,0.001,3413.2,3413.1,10.86437111]
[1754174478578,0.4791,3413.2,3413.1,3.0]
[1754174478776,0.9394,3413.2,3413.1,3.0]
[1754174480574,0.9394,3413.2,3413.1,3.880629]
[1754174481388,0.9394,3413.2,3413.1,0.880629]
[1754174482683,0.9394,3413.2,3412.5,0.1464]
[1754174482884,1.55266573,3413.1,3412.5,0.1464]
[1754174483192,0.9499,3413.0,3412.5,0.1464]
[1754174483376,4.57462574,3412.9,3412.2,0.880869]
[1754174483559,0.1464,3412.3,3412.2,0.880869]
[1754174484674,0.6395,3412.3,3412.2,0.880869]
[1754174484857,1.61405,3412.3,3412.1,0.21933699]
[1754174485064,0.9499,3412.2,3411.8,0.882869]
[1754174485262,0.1464,3411.9,3411.8,0.002]
[1754174485499,4.6834,3411.9,3411.8,0.002]
[1754174485704,15.6333,3411.9,3411.8,0.002]
[1754174486192,19.1833,3411.9,3411.8,0.002]
[1754174487716,11.0963,3411.9,3411.8,0.002]
[1754174487999,15.6333,3411.9,3411.8,0.002]
[1754174488698,5.6333,3411.9,3411.8,0.002]
[1754174488899,6.19663,3411.9,3411.8,0.002]
[1754174492764,5.24673,3411.9,3411.8,0.002]
[1754174493177,4.538,3411.9,3411.8,0.002]
[1754174493406,4.6844,3411.9,3411.8,0.002]
[1754174494001,0.1464,3411.9,3411.8,0.002]
[1754174494176,4.6844,3411.9,3411.8,0.002]
[1754174498128,5.15284,3411.9,3411.8,0.002]
[1754174498320,5.65647647,3411.9,3411.8,0.002]
[1754174498526,5.61984,3411.9,3411.8,0.002]
[1754174498725,6.01644,3411.9,3411.8,0.002]
[1754174499402,1.47844,3411.9,3411.8,0.002]
[1754174499607,6.05207647,3411.9,3411.8,0.002]
[1754174499811,6.01544,3411.9,3411.8,0.002]
[1754174500138,9.10844,3411.9,3411.8,0.002]
[1754174500335,6.01544,3411.9,3411.8,0.002]
[1754174500723,16.01544,3411.9,3411.8,0.002]
[1754174501326,10.61484,3411.9,3411.8,0.002]
[1754174501529,15.15184,3411.9,3411.8,0.002]
[1754174501839,5.15184,3411.9,3411.8,0.002]
[1754174502344,4.537,3411.9,3411.8,0.4941]
[1754174502551,4.6834,3411.9,3411.8,0.4941]
[1754174502836,4.6834,3411.9,3411.8,0.9242]
[1754174504642,0.1464,3411.9,3411.8,0.9242]
[1754174504841,4.537,3411.9,3411.8,0.9242]
[1754174506536,4.6834,3412.2,3411.8,0.9242]
[1754174506725,4.6834,3412.2,3411.8,0.882919]
[1754174506925,4.6834,3412.2,3411.9,0.9222]
[1754174507120,4.6834,3412.2,3412.0,1.1173519]
[1754174507322,4.6834,3412.2,3412.1,0.9222]
[1754174508048,4.537,3412.2,3412.1,0.9222]
[1754174508415,4.537,3412.2,3411.8,0.6405]
[1754174508615,4.6834,3412.2,3412.0,0.880899]
[1754174508842,4.6834,3412.2,3412.1,0.9222]
[1754174509735,4.6834,3412.2,3412.1,1.14350215]
[1754174514627,4.6834,3412.2,3412.1,0.22130215]
[1754174514841,4.6834,3412.2,3411.8,1.376158]
[1754174515079,0.1464,3412.0,3411.9,0.9472]
[1754174515380,0.1464,3412.0,3411.9,0.4932]
[1754174515553,0.5267894,3412.0,3411.8,0.002]
[1754174515749,0.9838894,3412.0,3411.8,0.002]
[1754174516573,0.03663647,3411.9,3411.8,0.002]
[1754174516938,0.49373647,3411.9,3411.8,0.002]
[1754174519092,0.5267894,3412.0,3411.8,0.002]
[1754174519291,0.1464,3412.0,3411.8,0.002]
[1754174520781,4.537,3412.2,3411.8,0.002]
[1754174520782,4.537,3412.2,3411.9,0.9472]
[1754174521000,0.1464,3412.0,3411.8,0.002]
[1754174521681,4.537,3412.2,3411.9,0.9472]
[1754174521863,4.6834,3412.2,3412.0,0.9472]
[1754174522062,4.6834,3412.2,3412.1,0.9472]
[1754174522292,4.6834,3412.2,3411.8,0.002]
[1754174522591,0.1464,3412.0,3411.9,0.4932]
[1754174522799,0.1464,3412.0,3411.9,0.9472]
[1754174522960,0.1464,3412.1,3411.9,0.9472]
[1754174523160,4.537,3412.2,3412.0,0.9472]
[1754174523385,4.537,3412.2,3411.8,0.002]
[1754174523386,4.6834,3412.2,3412.1,0.9472]
[1754174524355,4.6834,3412.2,3412.1,1.34789002]
[1754174525207,4.6834,3412.2,3412.1,1.16487792]
[1754174528542,4.6794,3412.6,3412.1,1.31127792]
[1754174528747,4.533,3412.6,3412.2,0.9472]
[1754174528945,4.533,3412.6,3412.3,0.9472]
[1754174529248,4.533,3412.6,3412.4,0.9472]
[1754174529442,4.533,3412.6,3412.5,0.9472]
[1754174531137,4.533,3412.6,3412.1,0.71087792]
[1754174531335,0.1464,3412.5,3412.1,0.71087792]
[1754174531541,0.1464,3412.3,3412.1,0.71087792]
[1754174531946,0.1464,3412.3,3412.1,1.16487792]
[1754174534353,0.1464,3412.3,3412.1,0.21767792]
[1754174534527,0.001,3412.3,3412.1,0.21767792]
[1754174534731,0.001,3412.3,3411.9,0.4932]
[1754174534924,0.001,3412.3,3412.0,0.4932]
[1754174535639,0.001,3412.3,3412.0,0.9472]
[1754174536224,0.001,3412.3,3411.8,0.002]
[1754174536453,0.001,3412.3,3411.8,0.4952]
[1754174536770,0.001,3412.3,3411.9,0.4932]
[1754174537065,0.001,3412.3,3411.9,0.9472]
[1754174537302,0.001,3412.3,3411.9,0.454]
[1754174537446,0.001,3412.3,3412.0,0.4932]
[1754174537627,0.001,3412.3,3412.0,0.9472]
[1754174539234,0.8537,3412.2,3411.8,0.002]
[1754174539467,0.4571,3412.1,3411.8,0.002]
[1754174539678,4.5676354,3412.0,3411.8,0.002]
[1754174539822,0.54213354,3411.9,3411.8,0.002]
[1754174540022,1.39583354,3411.9,3411.8,0.002]
[1754174541422,1.43247001,3411.9,3411.8,0.002]
[1754174542780,0.54213354,3411.9,3411.8,0.002]
[1754174544563,1.14893354,3411.9,3411.8,0.002]
[1754174544771,1.18557001,3411.9,3411.8,0.002]
[1754174545264,1.58217001,3411.9,3411.8,0.002]
[1754174546434,1.18557001,3411.9,3411.8,0.002]
[1754174547172,1.14893354,3411.9,3411.8,0.002]
[1754174547400,0.68853354,3411.9,3411.8,0.002]
[1754174550447,0.72517001,3411.9,3411.8,0.002]
[1754174550849,1.18557001,3411.9,3411.8,0.002]
[1754174551054,1.58217001,3411.9,3411.8,0.002]
[1754174551884,1.18557001,3411.9,3411.8,0.002]
[1754174552069,0.72517001,3411.9,3411.8,0.002]
[1754174552274,0.1464,3411.9,3411.8,0.002]
[1754174552469,4.6764,3411.9,3411.8,0.4931]
[1754174552671,4.6764,3411.9,3411.8,0.9404]
[1754174553478,4.6764,3411.9,3411.8,0.4931]
[1754174557091,4.6764,3411.9,3411.8,0.002]
[1754174558896,4.6754,3411.9,3411.8,0.9404]
[1754174563097,0.1464,3411.9,3411.8,0.9404]
[1754174563296,0.1464,3411.9,3411.8,1.69520062]
[1754174563297,4.6744,3411.9,3411.8,1.69520062]
[1754174563473,0.1464,3411.9,3411.8,1.69520062]
[1754174563792,4.6744,3411.9,3411.8,0.002]
[1754174567197,4.6734,3411.9,3411.8,0.9404]
[1754174575103,4.6734,3411.9,3411.4,0.002]
[1754174575104,5.07,3411.9,3411.4,0.002]
[1754174575309,5.93323755,3411.8,3411.4,0.002]
[1754174575485,5.3896,3411.7,3411.4,0.002]
[1754174575681,7.047,3411.6,3411.4,0.002]
[1754174575899,7.9106,3411.6,3411.4,0.002]
[1754174576079,7.047,3411.6,3411.4,0.002]
[1754174576280,3.10824077,3411.5,3411.4,0.002]
[1754174577209,3.65824077,3411.5,3411.4,0.002]
[1754174577578,3.6216,3411.5,3411.4,0.002]
[1754174577811,13.6216,3411.5,3411.4,0.002]
[1754174578005,12.758,3411.5,3411.4,0.002]
[1754174578268,19.7146,3411.5,3411.4,0.002]
[1754174578678,19.98499866,3411.5,3411.4,0.002]
[1754174580177,20.13098402,3411.5,3411.4,0.002]
[1754174580537,50.23098402,3411.5,3411.4,0.002]
[1754174580875,50.13098402,3411.5,3411.4,0.002]
[1754174581220,54.65698402,3411.5,3411.4,0.002]
[1754174581623,54.65798402,3411.5,3411.4,0.002]
[1754174581828,21.41899866,3411.5,3411.4,0.002]
[1754174582024,16.34199866,3411.5,3411.4,0.002]
[1754174582530,16.735,3411.5,3411.4,0.002]
[1754174582686,15.208,3411.5,3411.4,0.002]
[1754174582885,2.208,3411.5,3411.4,0.002]
[1754174583121,4.527,3411.5,3411.4,0.002]
[1754174584416,4.56364077,3411.5,3411.4,0.002]
[1754174585401,4.71004077,3411.5,3411.4,0.002]
[1754174585797,14.71004077,3411.5,3411.4,0.002]
[1754174586003,14.6734,3411.5,3411.4,0.002]
[1754174586200,16.94284,3411.5,3411.4,0.002]
[1754174586403,10.1464,3411.5,3411.4,0.002]
[1754174586605,14.6734,3411.5,3411.4,0.9103]
[1754174586807,4.6734,3411.5,3411.4,0.9103]
[1754174587325,4.6734,3411.5,3411.4,0.002]
[1754174587531,5.88208077,3411.5,3411.4,0.002]
[1754174587695,5.84544,3411.5,3411.4,0.002]
[1754174589310,1.31844,3411.5,3411.4,0.002]
[1754174589505,5.84544,3411.5,3411.4,0.002]
[1754174590194,5.84544,3411.5,3411.4,0.9103]
[1754174590424,4.6734,3411.5,3411.4,0.9103]
[1754174590727,10.0,3412.2,3411.4,0.9103]
[1754174591030,10.1464,3412.2,3411.7,0.1464]
[1754174591200,4.527,3412.1,3411.7,0.1464]
[1754174591400,4.527,3412.1,3411.8,0.9083]
[1754174591631,0.1464,3411.9,3411.8,0.1789229]
[1754174591840,4.6734,3411.9,3411.5,1.027329]
[1754174592129,4.6734,3411.9,3411.5,0.977329]
[1754174592331,4.6734,3411.9,3411.6,0.9083]
[1754174592489,4.6734,3411.9,3411.7,0.9083]
[1754174592690,4.6734,3411.9,3411.7,0.22475432]
[1754174592891,4.6734,3411.9,3411.8,0.9083]
[1754174593738,7.05,3412.3,3411.8,1.0968629]
[1754174593937,0.1464,3412.1,3411.9,0.9083]
[1754174594245,4.526,3412.0,3411.8,0.1885629]
[1754174594413,7.05,3412.3,3411.8,0.1885629]
[1754174594614,4.6724,3412.2,3411.8,0.1885629]
[1754174594811,0.001,3412.3,3412.0,3.0]
[1754174595048,4.526,3412.2,3412.1,2.47289609]
[1754174595343,4.526,3412.2,3412.1,2.45857653]
[1754174595727,4.526,3412.2,3412.1,6.00857653]
[1754174596547,4.527,3412.3,3412.2,0.55]
[1754174596725,4.527,3412.3,3412.2,2.14361559]
[1754174596929,4.527,3412.3,3412.2,3.05191559]
[1754174597514,0.001,3412.3,3412.2,3.34691819]
[1754174597728,0.001,3412.3,3412.2,3.36123561]
[1754174598607,4.526,3412.8,3412.2,3.36123561]
[1754174598935,4.526,3412.8,3412.6,13.62397937]
[1754174599331,4.526,3412.8,3412.6,14.53227937]
[1754174600242,4.525,3413.0,3412.6,14.53227937]